Cogmind - Beta 14 @@@ ROGUE MODE // 2024.10.12 @ 11:04:50 Player: Awoo-Bot Result: Destroyed by R3-CVN(R) with Subdweller Machine Gun Performance ------------- Evolutions (0) 0 Regions Visited (2) 400 Robots Destroyed (18) 90 Value Destroyed (347) 347 Prototype IDs (0) 0 Alien Tech Used (0) 0 Bonus (0) 0 TOTAL SCORE: 837 Bonus ------- None Cogmind --------- Core Integrity 0/250 Matter 187/300 Energy 86/100 System Corruption 0% Temperature Cool (0) Movement Core (100) Ox1 Location -10/Subcaves Parts ------- > --- POWER (1) -------- (None) > --- PROPULSION (2) --- (None) > --- UTILITY (2) ------ Disposable Heat Sink Structural Scanner > --- WEAPON (2) ------- Battle Rifle > --- INVENTORY (5) ---- High-capacity Storage Unit Shrapnel Trap Peak State ------------ > --- POWER ------------ Light Ion Engine > --- PROPULSION ------- Light Treads Subdweller Monowheel > --- UTILITY ---------- Scrap Shield > --- WEAPON ----------- Beam Cannon Battle Cannon > --- INVENTORY -------- Medium Laser Light Cannon Grenade Launcher [Rating: 11] Favorites ----------- Power Ion Engine Engine Ion Engine Propulsion Light Treads Treads Light Treads Wheel Subdweller Monowheel Flight Unit Flight Unit Utility Structural Scanner Device Structural Scanner Storage Large Storage Unit Protection Scrap Shield Weapon Beam Cannon Energy Gun Medium Laser Energy Cannon Beam Cannon Ballistic Gun Light Assault Rifle Ballistic Cannon Battle Cannon Launcher Grenade Launcher Build | -11 -10 -10 ------- Run | Yrd Mat Sub Slots Evolved . | . . . Power . | . . . Propulsion . | . . . Utility . | . . . Weapon . | . . . Parts Attached 44 | 8 17 19 Power 2 | 1 . 1 Engine 2 | 1 . 1 Core . | . . . Reactor . | . . . Propulsion 17 | 3 8 6 Treads 5 | 2 2 1 Leg . | . . . Wheel 11 | 1 6 4 Hover . | . . . Flight 1 | . . 1 Utility 11 | 2 3 6 Device 7 | 1 1 5 Storage 3 | 1 2 . Processor . | . . . Hackware . | . . . Protection 1 | . . 1 Artifact . | . . . Weapon 14 | 2 6 6 Energy Gun 2 | 1 1 . Energy Cannon 4 | . 3 1 Ballistic Gun 2 | 1 . 1 Ballistic Cannon 3 | . . 3 Launcher 3 | . 2 1 Special Weapon . | . . . Impact Weapon . | . . . Slashing Weapon . | . . . Piercing Weapon . | . . . Special Melee Weapon . | . . . Unidentified Prototypes . | . . . Parts Lost 14 | . 2 12 Power 2 | . . 2 Propulsion 6 | . 2 4 Utility 3 | . . 3 Weapon 3 | . . 3 Highest Loss Streak 7 | . 2 7 To Critical Strikes . | . . . Average Slot Usage (%) 92 | . 99 86 Engine 13 | . 14 12 Treads 14 | . 15 12 Wheel 12 | . 12 13 Device 9 | . 14 5 Storage 9 | . 14 5 Protection 4 | . . 8 Energy Gun 6 | . 14 . Energy Cannon 10 | . 7 12 Ballistic Gun 1 | . 3 . Ballistic Cannon 6 | . . 13 Launcher 1 | . 2 . Peak Build Rating 11 | 7 8 11 Average Rating 8 | 5 7 9 On Entrance 5 | . 7 8 Naked Turns . | . . . Heaviest Build 51 | 14 51 31 Greatest Support 40 | 40 40 20 Greatest Overweight (x) 10 | . 10 7 Average Overweight (x) 1 | . 2 1 Largest Inventory Capacity 20 | 8 20 15 Average Capacity 11 | 7 15 8 Most Carried 12 | 4 11 12 Average Carried 7 | 3 9 5 Final Capacity 15 | 8 15 5 Final Carried 10 | 4 10 2 Class Distribution -------------------- 100% | Mutant Dominant Class ---------------- Mutant | -10/Materials Mutant | -10/Subcaves Resources | -11 -10 -10 ----------- Run | Yrd Mat Sub Matter Collected 717 | 231 117 369 Remotely . | . . . Salvage Created 395 | 102 154 139 Parts 28 | 9 13 6 Haulers Intercepted . | . . . Recyclers Shooed 1 | 1 . . Parts Field Recycled . | . . . Retrieved Matter . | . . . Parts Self-Destructed 9 | . . 9 Prevented . | . . . Kills | -11 -10 -10 ------- Run | Yrd Mat Sub Combat Hostiles Destroyed 13 | . 7 6 Guns 5 | . 5 . Cannons 6 | . 1 5 AOE 1 | . 1 . Classes Destroyed 7 | 2 4 1 Worker 1 | . 1 . Builder 1 | . 1 . Tunneler 2 | 2 . . Recycler 1 | 1 . . Swarmer 7 | . 5 2 Grunt 2 | . 2 . Subdweller 4 | . . 4 Best Kill Streak 3 | 2 3 2 Combat Bots Only 3 | . 3 2 Max Kills in Single Turn 1 | 1 1 1 Gunslinging . | . . . Exploded 1 | . 1 . Melee . | . . . Uniques/NPCs Destroyed . | . . . Combat | -11 -10 -10 -------- Run | Yrd Mat Sub Hostile Shots Fired 133 | . 35 98 Missed 29 | . 6 23 Damage Taken 1828 | . 318 1510 Core 267 | . 58 209 Absorbed by Shields . | . . . Core Remaining (%) 100 | 100 . . Volleys Fired 89 | 11 28 50 Largest 2 | 2 2 2 Hottest 110 | 70 110 110 Shots Fired 146 | 22 45 79 Gun 57 | 22 26 9 Cannon 81 | . 13 68 Launcher 8 | . 6 2 Special . | . . . Kinetic 53 | 11 4 38 Thermal 85 | 11 35 39 Explosive 8 | . 6 2 Electromagnetic . | . . . Robot Hit Streak 16 | 3 4 16 Robot Miss Streak 5 | 3 5 1 Penetration Max . | . . . Secondary Targets . | . . . Shots Hit Robots 86 | 10 18 58 Core Hits 28 | 6 11 11 Critical Kills 1 | . . 1 Critical Parts Destroyed . | . . . Critical Strikes 5 | 1 2 2 Burn 3 | 1 2 . Meltdown 1 | . . 1 Blast 1 | . . 1 Melee Attacks . | . . . Impact . | . . . Slashing . | . . . Piercing . | . . . Sneak Attacks . | . . . Combat Hostiles . | . . . Follow-up Attacks . | . . . Damage Inflicted 1578 | 108 447 1023 Guns 361 | 108 164 89 Cannons 1004 | . 70 934 Explosions 213 | . 213 . Melee . | . . . Ramming . | . . . Kinetic 531 | 32 . 499 Thermal 834 | 76 234 524 Explosive 213 | . 213 . Electromagnetic . | . . . Impact . | . . . Slashing . | . . . Piercing . | . . . Highest Corruption . | . . . Average Corruption . | . . . Corruption Purged . | . . . Corruption Blocked . | . . . Overload Shots . | . . . Overflow Damage . | . . . Projectiles . | . . . Explosions . | . . . Melee . | . . . Knockbacks 8 | . . 8 Impact . | . . . Kinetic 8 | . . 8 Secondary . | . . . Self-Inflicted Damage 24 | . 24 . Shots 1 | . 1 . Rammed . | . . . Targets Rammed . | . . . Kicked . | . . . Crushed . | . . . Highest Temperature 276 | 110 276 2 Average Temperature 65 | 48 75 2 Received Heat Transfer 225 | . 87 138 Siege Activations . | . . . Robots Corrupted . | . . . Combat Hostiles . | . . . Parts Fried . | . . . Impact Corruptions . | . . . Robots Melted 1 | . . 1 Combat Hostiles 1 | . . 1 Parts Melted 3 | . 2 1 Heat Transferred 2220 | 296 777 1147 Parts Sabotaged . | . . . Parts Stolen . | . . . Parts Stripped . | . . . Power Chain Reactions . | . . . Alert | -11 -10 -10 ------- Run | Yrd Mat Sub Peak Influence 205 | 15 205 . Initial 9 | . 9 . Average 58 | 4 64 . Maximum Alert Level 1 | . 1 . Low Security (%) 99 | 100 99 . Level 1 . | . . . Level 2 . | . . . Level 3 . | . . . Level 4 . | . . . Level 5 . | . . . High Security . | . . . Max Security . | . . . Squads Dispatched . | . . . Investigation . | . . . Extermination . | . . . Reinforcement . | . . . Assault . | . . . Garrison . | . . . Intercept . | . . . Searches Triggered . | . . . Construction Impeded . | . . . Haulers Reinforced . | . . . Active Scanning Responses . | . . . Cargo Convoy Interrupts . | . . . Stealth | -11 -10 -10 --------- Run | Yrd Mat Sub Distress Signals 3 | . 3 . Communications Jammed . | . . . Distress Signals . | . . . Times Spotted 26 | . 16 10 Peak Tracking Total 4 | . 4 4 Tactical Retreats 1 | . 1 . Traps | -11 -10 -10 ------- Run | Yrd Mat Sub Traps Triggered . | . . . Indirectly . | . . . Trap Hack Attempts . | . . . Triggered . | . . . Disarmed . | . . . Reprogrammed . | . . . Reused . | . . . Traps Extracted . | . . . Installed . | . . . Triggered . | . . . Most Traps Carried 1 | . . 1 Machines | -11 -10 -10 ---------- Run | Yrd Mat Sub Machines Disabled 1 | . 1 . Max in Single Turn 1 | . 1 . Machines Repaired . | . . . Machines Dismantled . | . . . Machines Sabotaged . | . . . Overloaded Fab Kills . | . . . Hacking | -11 -10 -10 --------- Run | Yrd Mat Sub Machines Accessed 6 | . 5 1 Terminals 5 | . 5 . Fabricators . | . . . Repair Stations . | . . . Recycling Units . | . . . Scanalyzers . | . . . Garrison Access . | . . . Total Hacks 19 | . 14 5 Successful 10 | . 5 5 Failed 9 | . 9 . Catastrophic 1 | . 1 . Database Lockouts . | . . . Manual 14 | . 14 . Terminals 14 | . 14 . Fabricators . | . . . Repair Stations . | . . . Recycling Units . | . . . Scanalyzers . | . . . Garrison Access . | . . . Terminal Hacks 5 | . . 5 Record 5 | . . 5 Fabricator Hacks . | . . . Repair Station Hacks . | . . . Recycling Unit Hacks . | . . . Scanalyzer . | . . . Garrison Access Hacks . | . . . Unauthorized Hacks 5 | . 5 . Terminals 5 | . 5 . Botnet 4 | . 4 . Skim 1 | . 1 . Fabricators . | . . . Repair Stations . | . . . Recycling Units . | . . . Scanalyzers . | . . . Garrison Access . | . . . Data Cores Recovered . | . . . Used . | . . . Hacking Detections 5 | . 5 . Full Trace Events 1 | . 1 . Feedback Events . | . . . Feedback Blocked . | . . . Robot Schematics Acquired . | . . . Robots Built . | . . . Authchips . | . . . Time . | . . . Total Robot Build Rating . | . . . Part Schematics Acquired . | . . . Parts Built . | . . . Authchips . | . . . Time . | . . . Total Part Build Rating . | . . . Parts Repaired . | . . . Time . | . . . Parts Recycled . | . . . Recycled Matter . | . . . Retrieved Matter . | . . . Retrieved Components . | . . . Parts Scanalyzed . | . . . Part Schematics Acquired . | . . . Parts Damaged . | . . . Bothacking | -11 -10 -10 ------------ Run | Yrd Mat Sub Used RIF Installer . | . . . Robots Hacked . | . . . Non-combat . | . . . Combat . | . . . Robot Hacks Applied . | . . . Relay Couplers Released . | . . . Fabnet Peak Effective % . | . . . Robots Rewired . | . . . Allies Hacked . | . . . Hacks Repelled . | . . . Allies | -11 -10 -10 -------- Run | Yrd Mat Sub Total Allies . | . . . Largest Group . | . . . Highest-Rated Group . | . . . Highest-Rated Ally . | . . . Total Orders . | . . . Ally Attacks . | . . . Total Damage . | . . . Kills . | . . . Allies Corrupted . | . . . Allies Melted . | . . . Intel | -11 -10 -10 ------- Run | Yrd Mat Sub Robot Analysis Total . | . . . Derelict Logs Recovered 1 | . . 1 Drone Launches . | . . . Drone Recoveries . | . . . Exploration | -11 -10 -10 ------------- Run | Yrd Mat Sub Turns Passed 2569 | 129 1172 1268 Spaces Moved 1449 | 63 499 887 Core 20 | 14 2 4 Treads 123 | 47 67 9 Legs . | . . . Wheels 1306 | 2 430 874 Hover . | . . . Flight . | . . . Fastest Speed 50 | 50 115 110 Average Speed 127 | 133 136 122 Slowest Speed 550 | 160 550 400 Overloaded Moves . | . . . Propulsion Burnouts . | . . . Robots Hopped . | . . . Cave-ins Triggered . | . . . Exploration Rate (%) 35 | 5 69 33 Regions Visited 2 Branch Regions 1 Pre-discovered Areas 2 | . . 2 Known Exits Taken . | . . . Unknown Exits Taken 2 | 1 1 . Scrap Searched 5 | . . 5 Spaces Dug . | . . . Terrain Destroyed 42 | . 33 9 Melee . | . . . Projectile . | . . . AOE 42 | . 33 9 Terrain Rammed . | . . . Walls Destroyed . | . . . Machines Disabled . | . . . Actions | -11 -10 -10 --------- Run | Yrd Mat Sub Total 2016 | 85 940 991 Wait 391 | . 384 7 Move 1447 | 62 498 887 Hop . | . . . Pick Up 26 | 3 10 13 Fast Attach 14 | 8 2 4 Attach 8 | . 2 6 Detach 2 | 1 1 . Swap 22 | . 13 9 Drop 13 | . 2 11 Fire 89 | 11 28 50 Melee . | . . . Ram . | . . . Kick . | . . . Crush . | . . . Escape Stasis . | . . . Rewire . | . . . Trap . | . . . Miscellaneous 4 | . . 4 Route ------- -11/Scrapyard -10/Materials (discovered 2 exits: [*Mat] / *Sub) -10/Subcaves (discovered 1 exit: [*Mat]) History --------- Turn | Location | Event 3 | -11/Scrapyard | Discovered new exit (range 16) 130 | -11/Scrapyard | Entered Materials 314 | -10/Materials | Build established: Mutant 556 | -10/Materials | Discovered new exit (range 10) 1104 | -10/Materials | Discovered new exit (range 5) 1302 | -10/Materials | Entered Subcaves 1351 | -10/Subcaves | Core integrity fell below 50% 1393 | -10/Subcaves | Lost 5 parts (1p2n1u1w) 1433 | -10/Subcaves | Learned location of Storage (-7) 1709 | -10/Subcaves | Learned location of Zion (-6) 1709 | -10/Subcaves | Met a Zionite searching for "candidates" 1788 | -10/Subcaves | Disturbed a concealed Subdweller 1878 | -10/Subcaves | Visited Clippyterm 1882 | -10/Subcaves | Learned Factory fabricator intel 1882 | -10/Subcaves | Learned Factory stockpile data 1891 | -10/Subcaves | A swath of the cavern ceiling suddenly collapsed 2086 | -10/Subcaves | Shifting Twisted Machinery released Sub. Monowheel 2100 | -10/Subcaves | Discovered new exit (range 11) 2561 | -10/Subcaves | Core integrity fell below 20% 2570 | -10/Subcaves | Destroyed by R3-CVN(R) with Subdweller Machine Gun Last Messages --------------- 02388_ Sub. Monowheel shoots sparks and powers down. 02391_ Dropped Broken Sub. Monowheel. 02408_ Acquired Sub. Monowheel. 02502_ Sub. Monowheel shoots sparks and powers down. 02505_ Dropped Broken Sub. Monowheel. 02507_ Subatomizers dissect the Broken Sub. Monowheel. 02534_ N1-DUV(R) destroyed. 02537_ Scrap Shield destroyed. 02537_ MH-51J(R) knocked back. 02542_ Acquired Disposable Heat Sink. 02544_ Acquired 27 matter. 02547_ Acquired Terrain Scanner. 02549_ Sub. Monowheel destroyed. 02551_ MH-51J(R) knocked back. 02552_ Battle Cannon destroyed. 02554_ Lgt. Treads destroyed. 02558_ Subatomizers dissect the Broken Sub. Monowheel. 02560_ Lgt. Ion Engine destroyed. 02562_ Beam Cannon destroyed. 02562_ Terrain Scanner destroyed. Map ----- +----------------------------------------------------+ | | | | | | | | | | | | | | | | | ?????????????????????????????????????????????????? | | ?????????????????????????????????????????????????? | | ?????????????????????????????????????????????????? | | ?????????????????????????????????????????????????? | | ?????????????????????????#???????????????????????? | | ?????????????????????????????????????????????????? | | ?????????????????????????????????????????????????? | | ?????????????????????????????????????????????????? | | ?????????????????????????????????????????????????? | | ?????????????????????????????????????????????????? | | ??????????????????????????????????#??????????????? | | ?????????????????????????????????????????????????? | | ???????????????????????????????#?????????????????? | | ?????????????????????????????????????????????????? | | ?????????????????????????#####???????????????????? | | ???????????????????#################?????????????? | | ##?????????####????#### ## ## ## ##?????????????? | | ###?###??## ####### R@ ###????????????? | | # ### #### ## #% ### ##????????????? | | ## #R######?? ????????????? | | ## = ##???#?????????????? | | ## ## ### #?????????????????? | | ## ### # # #?????????????????? | | ## ##### ??????????????? | | ## #?## # "????????????? | | #### ## ### #????#? ""???????????? | | # # #####??########?## ##????????"#???????????? | | #######?????????????????###??????????????????????? | | ???????????????????????????????#?????????????????? | | ?????????????????????????????????????????????????? | | ?????????????????????????????????????????????????? | | ?????????????????????????????????????????????????? | | ?????????????????????????????????????????????????? | | ?????????????????????????????????????????????????? | | ?????????????????????????????????????????????????? | | ?????????????????????????????????????????????????? | | ?????????????????????????????????????????????????? | | ?????????????????????????????????????????????????? | | ?????????????????????????????????????????????????? | | ?????????????????????????????????????????????????? | | ?????????????????????????????????????????????????? | | ?????????????????????????????????????????????????? | +----------------------------------------------------+ Best States ------------- Heat Dissipation 25 Coolant Potential 50 Energy Generation 10 Energy Capacity 250 Matter Stores 300 Matter Capacity 300 Sight Range 16 Terrain Scan Range 14 Terrain Scan Density 10 Armor Coverage 800 Evasion (%) 50 Recoil Reduction 2 Item Schematics ----------------- None Robot Schematics ------------------ None Fabricated ------------ Nothing Alien Tech Used ----------------- None Achievements -------------- None Challenges ------------ None Game ------ Seed BattleBombTearclaws Manual? 0 Play Time 00:25:41 Cumulative 77.4 hours Start 2024.10.12 @ 10:43:14 End 2024.10.12 @ 11:04:50 Sessions 1 Manual Loads 0 Difficulty Rogue Special Mode None Game No. 129 Rogue 101 Adventurer 28 Explorer 0 Win Type - Total 0 Types 0/0/0/0/0/0/0/0/0 Lore% 15 Gallery% 29 Achievement% 31 Wizard Run 0 Options --------- Layout 0 ASCII 0 Keyboard 0 Movement Mouse Keybinds 0 Fullscreen 1 Font 36/SmallcapsGlow++ Map View 76x50 Zoom Use 0% Tactical HUD 1 Map Filters NONE Filters NONE Steam 1 RUN: 407b1dc5-635d-4787-83c7-44b2d364faf3